fUST/lending_fUST_20240610
["ID","MTS","AMOUNT","RATE_DAILY","PERIOD"]
[328940846,1718017854512,-1149.01,0.0002,2]
[328940847,1718017854523,-1037.55,0.0002,2]
[328940848,1718017854533,-1219.19,0.0002,2]
[328940849,1718017854543,-500.0,0.0002,2]
[328940850,1718017854552,-617.04,0.0002,2]
[328940851,1718017854562,-500.0,0.0002,2]
[328940852,1718017854572,-771.11,0.0002,2]
[328940853,1718017854583,-500.0,0.0002,2]
[328940854,1718017854593,-500.0,0.0002,2]
[328940855,1718017854603,-574.48,0.0002,2]
[328940856,1718017854613,-623.45,0.0002,2]
[328940857,1718017854624,-501.96796547,0.0002,2]
[328940858,1718017854634,-500.0,0.0002,2]
[328940859,1718017854645,-500.0,0.0002,2]
[328940860,1718017854655,-500.0,0.0002,2]
[328940861,1718017854664,-745.57,0.0002,2]
[328940862,1718017854676,-500.0,0.0002,2]
[328940863,1718017854686,-500.0,0.0002,2]
[328940864,1718017854696,-2541.57,0.0002,2]
[328940865,1718017854706,-718.15,0.0002,2]
[328940866,1718017854716,-500.0,0.0002,2]
[328940867,1718017854726,-1718.23,0.0002,2]
[328940868,1718017854736,-500.0,0.0002,2]
[328940869,1718017854746,-500.0,0.0002,2]
[328940870,1718017854756,-1630.78,0.0002,2]
[328940871,1718017854766,-500.0,0.0002,2]
[328940872,1718017854775,-2581.48,0.0002,2]
[328940873,1718017854785,-500.0,0.0002,2]
[328940874,1718017854795,-1854.18,0.0002,2]
[328940875,1718017854805,-974.29,0.0002,2]
[328940876,1718017854815,-500.0,0.0002,2]
[328940877,1718017854824,-500.0,0.0002,2]
[328940878,1718017854834,-500.0,0.0002,2]
[328940879,1718017854844,-500.0,0.0002,2]
[328940880,1718017854858,-581.41,0.0002,2]
[328940881,1718017854869,-743.32,0.0002,2]
[328940882,1718017854878,-1659.56,0.0002,2]
[328940883,1718017854888,-942.18,0.0002,2]
[328940884,1718017854900,-1793.3,0.0002,2]
[328940885,1718017854910,-883.56,0.0002,2]
[328940886,1718017854920,-500.0,0.0002,2]
[328940887,1718017854930,-912.13,0.0002,2]
[328940888,1718017854942,-500.0,0.0002,2]
[328940889,1718017854953,-2898.78,0.0002,2]
[328940890,1718017854962,-3207.7,0.0002,2]
[328940891,1718017854972,-500.0,0.0002,2]
[328940892,1718017854983,-500.0,0.0002,2]
[328940893,1718017854993,-500.0,0.0002,2]
[328940894,1718017855003,-575.55,0.0002,2]
[328940895,1718017855013,-500.0,0.0002,2]
[328940896,1718017855023,-619.3,0.0002,2]
[328940897,1718017855033,-500.0,0.0002,2]
[328940898,1718017855044,-648.22936795,0.0002,2]
[328940899,1718017855053,-1228.65,0.0002,2]
[328940900,1718017855063,-549.86871283,0.0002,2]
[328940901,1718017855073,-1301.62,0.0002,2]
[328940902,1718017855083,-500.0,0.0002,2]
[328940903,1718017855094,-500.0,0.0002,2]
[328940904,1718017855104,-500.0,0.0002,2]
[328940905,1718017855114,-500.0,0.0002,2]
[328940906,1718017855124,-403.7093912,0.0002,2]
[328940907,1718017855135,-500.0,0.0002,2]
[328940908,1718017855144,-1649.78,0.0002,2]
[328940909,1718017855156,-500.0,0.0002,2]
[328940910,1718017855166,-500.0,0.0002,2]
[328940911,1718017855176,-301.25795932,0.00020205,2]
[328940912,1718017855185,-179.4,0.00020219,5]
[328940913,1718017855196,-1000.0,0.0002022,2]
[328940914,1718017855205,-300.0,0.00020226,2]
[328940915,1718017855215,-1008.06252015,0.00020238,2]
[328940916,1718017855225,-1000.0,0.00020239,2]
[328940917,1718017855235,-300.0,0.00020249,2]
[328940918,1718017855245,-238.3,0.00020254,5]
[328940919,1718017855255,-587.0,0.00020259,2]
[328940920,1718017855264,-1132.56,0.00020273,2]
[328940921,1718017855275,-559.44,0.00020273,2]
[328940922,1718017855285,-500.0,0.00020273,2]
[328940923,1718017855295,-605.11,0.00020273,4]
[328940924,1718017855306,-501.41,0.00020273,2]
[328940925,1718017855316,-500.0,0.00020273,2]
[328940926,1718017855326,-500.0,0.00020273,2]
[328940927,1718017855337,-500.0,0.00020273,2]
[328940928,1718017855347,-500.0,0.00020273,2]
[328940929,1718017855357,-500.0,0.00020273,2]
[328940930,1718017855430,-500.0,0.00020273,2]
[328940931,1718017855441,-500.0,0.00020273,2]
[328940932,1718017855452,-1535.29,0.00020273,2]
[328940933,1718017855462,-500.0,0.00020273,2]
[328940934,1718017855472,-570.25,0.00020273,2]
[328940935,1718017855482,-596.19834304,0.00020273,2]
[328940936,1718017855492,-310.1319722,0.00020273,2]
[328940937,1718017855502,-640.85,0.00020273,2]
[328940938,1718017855513,-500.0,0.00020273,2]
[328940939,1718017855523,-1349.56,0.00020273,2]
[328940940,1718017855533,-500.0,0.00020273,2]
[328940941,1718017855543,-500.0,0.00020273,2]
[328940942,1718017855553,-500.0,0.00020273,2]
[328940943,1718017855563,-594.1,0.00020273,2]
[328940944,1718017855574,-1198.99,0.00020273,2]
[328940945,1718017855583,-500.0,0.00020273,2]
[328940946,1718017855593,-500.0,0.00020273,2]
[328940947,1718017855603,-1205.29,0.00020273,2]
[328940948,1718017855614,-500.0,0.00020273,2]
[328940949,1718017855624,-1488.6,0.00020273,2]
[328940950,1718017855635,-735.49,0.00020273,2]
[328940951,1718017855645,-500.0,0.00020273,2]
[328940952,1718017855655,-550.47,0.00020273,2]
[328940953,1718017855664,-810.63,0.00020273,2]
[328940954,1718017855674,-500.0,0.00020273,2]
[328940955,1718017855684,-500.0,0.00020273,2]
[328940956,1718017855695,-500.0,0.00020273,2]
[328940957,1718017855705,-1112.03,0.00020273,2]
[328940958,1718017855715,-503.67876938,0.00020273,2]
[328940959,1718017855725,-523.01,0.00020273,2]
[328940960,1718017855735,-1567.95,0.00020273,2]
[328940961,1718017855746,-500.0,0.00020273,2]
[328940962,1718017855755,-500.0,0.00020273,2]
[328940963,1718017855766,-500.0,0.00020273,2]
[328940964,1718017855776,-699.03,0.00020273,2]
[328940965,1718017855786,-500.0,0.00020273,2]
[328940966,1718017855796,-746.26,0.00020273,2]
[328940967,1718017855806,-625.63,0.00020273,2]
[328940968,1718017855816,-500.0,0.00020273,2]
[328940969,1718017855825,-500.0,0.00020273,2]
[328940970,1718017855836,-500.0,0.00020273,2]
[328940971,1718017855846,-929.91,0.00020273,2]
[328940972,1718017855861,-500.0,0.00020273,2]
[328940973,1718017855871,-1607.76,0.00020273,2]
[328940974,1718017855881,-500.0,0.00020273,2]
[328940975,1718017855892,-500.0,0.00020273,2]
[328940976,1718017855903,-500.0,0.00020273,2]
[328940977,1718017855914,-1323.18,0.00020273,2]
[328940978,1718017855924,-500.0,0.00020273,2]
[328940979,1718017855936,-500.0,0.00020273,2]
[328940980,1718017855946,-500.0,0.00020273,2]
[328940981,1718017855955,-1044.77,0.00020273,2]
[328940982,1718017855964,-500.0,0.00020273,2]
[328940983,1718017855974,-2042.85,0.00020273,2]
[328940984,1718017855984,-500.0,0.00020273,2]
[328940985,1718017855994,-500.0,0.00020273,2]
[328940986,1718017856003,-500.0,0.00020273,2]
[328940987,1718017856013,-500.0,0.00020273,2]
[328940988,1718017856023,-500.0,0.00020273,2]
[328940989,1718017856033,-500.0,0.00020273,2]
[328940990,1718017856043,-500.0,0.00020273,2]
[328940991,1718017856052,-500.0,0.00020273,2]
[328940992,1718017856062,-894.2,0.00020273,2]
[328940993,1718017856072,-500.0,0.00020273,2]
[328940994,1718017856081,-500.0,0.00020273,2]
[328940995,1718017856091,-633.2,0.00020273,2]
[328940996,1718017856102,-500.0,0.00020273,2]
[328940997,1718017856112,-500.0,0.00020273,2]
[328940998,1718017856122,-500.0,0.00020273,2]
[328940999,1718017856132,-500.0,0.00020273,2]
[328941000,1718017856142,-500.0,0.00020273,2]
[328941001,1718017856152,-500.0,0.00020273,2]
[328941002,1718017856163,-1885.28,0.00020273,2]
[328941003,1718017856173,-500.0,0.00020273,2]
[328941004,1718017856183,-500.0,0.00020273,2]
[328941005,1718017856193,-500.0,0.00020273,2]
[328941006,1718017856203,-500.0,0.00020273,2]
[328941007,1718017856212,-2127.33,0.00020273,2]
[328941008,1718017856222,-500.0,0.00020273,2]
[328941009,1718017856232,-501.58445018,0.00020273,2]
[328941010,1718017856242,-541.01,0.00020273,2]
[328941011,1718017856252,-2259.44,0.00020273,2]
[328941012,1718017856262,-343.46620655,0.00020273,2]
[328941013,1718017856272,-500.0,0.00020273,2]
[328941014,1718017856281,-500.0,0.00020273,2]
[328941015,1718017856292,-1295.58,0.00020273,2]
[328941016,1718017856302,-500.94,0.00020273,2]
[328941017,1718017856312,-500.0,0.00020273,2]
[328941018,1718017856322,-500.0,0.00020273,2]
[328941019,1718017856332,-1526.46,0.00020273,2]
[328941020,1718017856342,-500.0,0.00020273,2]
[328941021,1718017856352,-1005.98,0.00020273,2]
[328941022,1718017856361,-687.81,0.00020273,2]
[328941023,1718017856371,-500.0,0.00020273,2]
[328941024,1718017856381,-500.0,0.00020273,2]
[328941025,1718017856390,-1149.01,0.00020273,2]
[328941026,1718017856400,-1037.55,0.00020273,2]
[328941027,1718017856410,-1219.19,0.00020273,2]
[328941028,1718017856420,-500.0,0.00020273,2]
[328941029,1718017856430,-617.04,0.00020273,2]
[328941030,1718017856439,-500.0,0.00020273,2]
[328941031,1718017856449,-771.11,0.00020273,2]
[328941032,1718017856459,-500.0,0.00020273,2]
[328941033,1718017856469,-500.0,0.00020273,2]
[328941034,1718017856479,-574.48,0.00020273,2]
[328941035,1718017856489,-623.45,0.00020273,2]
[328941036,1718017856498,-500.0,0.00020273,2]
[328941037,1718017856508,-500.0,0.00020273,2]
[328941038,1718017856518,-500.0,0.00020273,2]
[328941039,1718017856528,-745.57,0.00020273,2]
[328941040,1718017856538,-500.0,0.00020273,2]
[328941041,1718017856548,-500.0,0.00020273,2]
[328941042,1718017856610,-2541.57,0.00020273,2]
[328941043,1718017856624,-718.15,0.00020273,2]
[328941044,1718017856633,-500.0,0.00020273,2]
[328941045,1718017856643,-1718.23,0.00020273,2]
[328941046,1718017856652,-500.0,0.00020273,2]
[328941047,1718017856662,-500.0,0.00020273,2]
[328941048,1718017856672,-1630.78,0.00020273,2]
[328941049,1718017856683,-500.0,0.00020273,2]
[328941050,1718017856693,-2581.48,0.00020273,2]
[328941051,1718017856702,-500.0,0.00020273,2]
[328941052,1718017856711,-1854.18,0.00020273,2]
[328941053,1718017856720,-974.29,0.00020273,2]
[328941054,1718017856730,-500.0,0.00020273,2]
[328941055,1718017856739,-500.0,0.00020273,2]
[328941056,1718017856749,-520.07627658,0.00020273,2]
[328941057,1718017856759,-500.0,0.00020273,2]
[328941058,1718017856769,-581.41,0.00020273,2]
[328941059,1718017856779,-743.32,0.00020273,2]
[328941060,1718017856789,-1659.56,0.00020273,2]
[328941061,1718017856799,-942.18,0.00020273,2]
[328941062,1718017856808,-1793.3,0.00020273,2]
[328941063,1718017856818,-883.56,0.00020273,2]
[328941064,1718017856827,-500.0,0.00020273,2]
[328941065,1718017856836,-912.13,0.00020273,2]
[328941066,1718017856846,-500.0,0.00020273,2]
[328941067,1718017856859,-2898.78,0.00020273,2]
[328941068,1718017856869,-3207.7,0.00020273,2]
[328941069,1718017856878,-500.0,0.00020273,2]
[328941070,1718017856888,-500.0,0.00020273,2]
[328941071,1718017856899,-500.0,0.00020273,2]
[328941072,1718017856909,-575.55,0.00020273,2]
[328941073,1718017856918,-500.0,0.00020273,2]
[328941074,1718017856927,-619.3,0.00020273,2]
[328941075,1718017856937,-500.0,0.00020273,2]
[328941076,1718017856947,-1228.65,0.00020273,2]
[328941077,1718017856956,-1301.62,0.00020273,2]
[328941078,1718017856966,-500.0,0.00020273,2]
[328941079,1718017856975,-500.0,0.00020273,2]
[328941080,1718017856985,-643.56004769,0.00020273,2]
[328941081,1718017856994,-500.0,0.00020273,2]
[328941082,1718017857004,-500.0,0.00020273,2]
[328941083,1718017857014,-1649.78,0.00020273,2]
[328941084,1718017857024,-500.0,0.00020273,2]
[328941085,1718017857033,-500.0,0.00020273,2]
[328941086,1718017857043,-153.0,0.00020274,2]
[328941087,1718017857052,-153.0,0.00020274,2]
[328941088,1718017857063,-153.0,0.00020274,2]
[328941089,1718017857073,-153.0,0.00020356,2]
[328941090,1718017857083,-153.0,0.00020356,2]
[328941091,1718017857093,-153.0,0.00020356,2]
[328941092,1718017857103,-620.71968193,0.0002039,2]
[328941093,1718017857113,-508.0,0.000204,2]
[328941094,1718017857123,-508.0,0.000204,2]
[328941095,1718017857133,-300.0,0.00020412,2]
[328941096,1718017857143,-300.0,0.00020429,2]
[328941097,1718017857153,-1000.0,0.0002043,2]
[328941098,1718017857163,-300.0,0.00020431,2]
[328941099,1718017857173,-11180.27389027,0.00020484,2]
[328941100,1718017857184,-225.1695884,0.00020484,2]
[328941101,1718017857194,-13481.93972849,0.00020484,2]
[328941102,1718017857204,-1132.56,0.00020547,2]
[328941103,1718017857214,-559.44,0.00020547,2]
[328941104,1718017857224,-500.0,0.00020547,2]
[328941105,1718017857234,-605.11,0.00020547,4]
[328941106,1718017857243,-501.41,0.00020547,2]
[328941107,1718017857253,-500.0,0.00020547,2]
[328941108,1718017857263,-500.0,0.00020547,2]
[328941109,1718017857273,-500.0,0.00020547,2]
[328941110,1718017857282,-500.0,0.00020547,2]
[328941111,1718017857292,-558.09172296,0.00020547,2]
[328941112,1718017857302,-500.0,0.00020547,2]
[328941113,1718017857312,-500.0,0.00020547,2]
[328941114,1718017857321,-1535.29,0.00020547,2]
[328941115,1718017857331,-500.0,0.00020547,2]
[328941116,1718017857341,-570.25,0.00020547,2]
[328941117,1718017857351,-640.85,0.00020547,2]
[328941118,1718017857361,-500.0,0.00020547,2]
[328941119,1718017857371,-1349.56,0.00020547,2]
[328941120,1718017857382,-500.0,0.00020547,2]
[328941121,1718017857392,-500.0,0.00020547,2]
[328941122,1718017857402,-500.0,0.00020547,2]
[328941123,1718017857412,-594.1,0.00020547,2]
[328941124,1718017857422,-1198.99,0.00020547,2]
[328941125,1718017857432,-500.0,0.00020547,2]
[328941126,1718017857442,-500.0,0.00020547,2]
[328941127,1718017857451,-1205.29,0.00020547,2]
[328941128,1718017857460,-348.23368899,0.00020547,2]
[328941129,1718017857470,-1488.6,0.00020547,2]
[328941130,1718017857480,-735.49,0.00020547,2]
[328941131,1718017857490,-500.0,0.00020547,2]
[328941132,1718017857500,-550.47,0.00020547,2]
[328941133,1718017857510,-810.63,0.00020547,2]
[328941134,1718017857519,-500.0,0.00020547,2]
[328941135,1718017857529,-500.0,0.00020547,2]
[328941136,1718017857538,-500.0,0.00020547,2]
[328941137,1718017857548,-1112.03,0.00020547,2]
[328941138,1718017857557,-523.01,0.00020547,2]
[328941139,1718017857567,-1567.95,0.00020547,2]
[328941140,1718017857577,-500.0,0.00020547,2]
[328941141,1718017857586,-500.0,0.00020547,2]
[328941142,1718017857596,-500.0,0.00020547,2]
[328941143,1718017857606,-699.03,0.00020547,2]
[328941144,1718017857615,-500.0,0.00020547,2]
[328941145,1718017857625,-746.26,0.00020547,2]
[328941146,1718017857689,-625.63,0.00020547,2]
[328941147,1718017857699,-500.0,0.00020547,2]
[328941148,1718017857708,-500.0,0.00020547,2]
[328941149,1718017857717,-929.91,0.00020547,2]
[328941150,1718017857727,-500.0,0.00020547,2]
[328941151,1718017857737,-500.0,0.00020547,2]
[328941152,1718017857747,-1607.76,0.00020547,2]
[328941153,1718017857756,-500.0,0.00020547,2]
[328941154,1718017857766,-500.0,0.00020547,2]
[328941155,1718017857777,-500.0,0.00020547,2]
[328941156,1718017857786,-1323.18,0.00020547,2]
[328941157,1718017857796,-152.32430789,0.00020547,2]
[328941158,1718017857806,-500.0,0.00020547,2]
[328941159,1718017857816,-500.0,0.00020547,2]
[328941160,1718017857826,-1044.77,0.00020547,2]
[328941161,1718017857836,-535.18,0.00020547,2]
[328941162,1718017857846,-2042.85,0.00020547,2]
[328941163,1718017857861,-500.0,0.00020547,2]
[328941164,1718017857871,-500.0,0.00020547,2]
[328941165,1718017857881,-500.0,0.00020547,2]
[328941166,1718017857891,-500.0,0.00020547,2]
[328941167,1718017857902,-500.0,0.00020547,2]
[328941168,1718017857912,-356.77295196,0.00020547,2]
[328941169,1718017857922,-500.0,0.00020547,2]
[328941170,1718017857935,-500.0,0.00020547,2]
[328941171,1718017857945,-894.2,0.00020547,2]
[328941172,1718017857955,-500.0,0.00020547,2]
[328941173,1718017857966,-500.0,0.00020547,2]
[328941174,1718017857975,-633.2,0.00020547,2]
[328941175,1718017857985,-500.0,0.00020547,2]
[328941176,1718017857995,-500.0,0.00020547,2]
[328941177,1718017858005,-500.0,0.00020547,2]
[328941178,1718017858015,-500.0,0.00020547,2]
[328941179,1718017858025,-500.0,0.00020547,2]
[328941180,1718017858035,-500.0,0.00020547,2]
[328941181,1718017858045,-1885.28,0.00020547,2]
[328941182,1718017858055,-500.0,0.00020547,2]
[328941183,1718017858065,-500.0,0.00020547,2]
[328941184,1718017858075,-500.0,0.00020547,2]
[328941185,1718017858085,-500.0,0.00020547,2]
[328941186,1718017858096,-2127.33,0.00020547,2]
[328941187,1718017858106,-500.0,0.00020547,2]
[328941188,1718017858116,-541.01,0.00020547,2]
[328941189,1718017858127,-2259.44,0.00020547,2]
[328941190,1718017858136,-500.0,0.00020547,2]
[328941191,1718017858147,-500.0,0.00020547,2]
[328941192,1718017858157,-1295.58,0.00020547,2]
[328941193,1718017858167,-500.94,0.00020547,2]
[328941194,1718017858177,-500.0,0.00020547,2]
[328941195,1718017858187,-500.0,0.00020547,2]
[328941196,1718017858197,-1526.46,0.00020547,2]
[328941197,1718017858207,-500.0,0.00020547,2]
[328941198,1718017858217,-1005.98,0.00020547,2]
[328941199,1718017858226,-687.81,0.00020547,2]
[328941200,1718017858237,-500.0,0.00020547,2]
[328941201,1718017858247,-458.29298178,0.00020547,2]
[328941202,1718017858258,-1149.01,0.00020547,2]
[328941203,1718017858268,-1037.55,0.00020547,2]
[328941204,1718017858278,-1219.19,0.00020547,2]
[328941205,1718017858289,-500.0,0.00020547,2]
[328941206,1718017858299,-617.04,0.00020547,2]
[328941207,1718017858309,-500.0,0.00020547,2]
[328941208,1718017858319,-771.11,0.00020547,2]
[328941209,1718017858330,-500.0,0.00020547,2]
[328941210,1718017858341,-500.0,0.00020547,2]
[328941211,1718017858351,-574.48,0.00020547,2]
[328941212,1718017858361,-623.45,0.00020547,2]
[328941213,1718017858370,-500.0,0.00020547,2]
[328941214,1718017858380,-500.0,0.00020547,2]
[328941215,1718017858389,-500.0,0.00020547,2]
[328941216,1718017858399,-745.57,0.00020547,2]
[328941217,1718017858408,-500.0,0.00020547,2]
[328941218,1718017858418,-500.0,0.00020547,2]
[328941219,1718017858427,-2541.57,0.00020547,2]
[328941220,1718017858437,-718.15,0.00020547,2]
[328941221,1718017858446,-500.0,0.00020547,2]
[328941222,1718017858456,-1718.23,0.00020547,2]
[328941223,1718017858465,-500.0,0.00020547,2]
[328941224,1718017858475,-500.0,0.00020547,2]
[328941225,1718017858485,-1630.78,0.00020547,2]
[328941226,1718017858495,-500.0,0.00020547,2]
[328941227,1718017858504,-2581.48,0.00020547,2]
[328941228,1718017858514,-500.0,0.00020547,2]
[328941229,1718017858525,-1854.18,0.00020547,2]
[328941230,1718017858535,-974.29,0.00020547,2]
[328941231,1718017858544,-500.0,0.00020547,2]
[328941232,1718017858554,-500.0,0.00020547,2]
[328941233,1718017858564,-500.0,0.00020547,2]
[328941234,1718017858574,-581.41,0.00020547,2]
[328941235,1718017858584,-743.32,0.00020547,2]
[328941236,1718017858593,-1659.56,0.00020547,2]
[328941237,1718017858603,-942.18,0.00020547,2]
[328941238,1718017858613,-1793.3,0.00020547,2]
[328941239,1718017858623,-883.56,0.00020547,2]
[328941240,1718017858633,-500.0,0.00020547,2]
[328941241,1718017858696,-912.13,0.00020547,2]
[328941242,1718017858705,-500.0,0.00020547,2]
[328941243,1718017858715,-2898.78,0.00020547,2]
[328941244,1718017858725,-587.0,0.00020547,2]
[328941245,1718017858735,-3207.7,0.00020547,2]
[328941246,1718017858745,-500.0,0.00020547,2]
[328941247,1718017858755,-500.0,0.00020547,2]
[328941248,1718017858764,-500.0,0.00020547,2]
[328941249,1718017858775,-575.55,0.00020547,2]
[328941250,1718017858785,-500.0,0.00020547,2]
[328941251,1718017858795,-619.3,0.00020547,2]
[328941252,1718017858805,-500.0,0.00020547,2]
[328941253,1718017858815,-1228.65,0.00020547,2]
[328941254,1718017858825,-1301.62,0.00020547,2]
[328941255,1718017858834,-500.0,0.00020547,2]
[328941256,1718017858845,-500.0,0.00020547,2]
[328941257,1718017858855,-500.0,0.00020547,2]
[328941258,1718017858869,-500.0,0.00020547,2]
[328941259,1718017858879,-1649.78,0.00020547,2]
[328941260,1718017858889,-500.0,0.00020547,2]
[328941261,1718017858899,-500.0,0.00020547,2]
[328941262,1718017858909,-153.0,0.00020548,2]
[328941263,1718017858919,-205.3053491,0.00020548,2]
[328941264,1718017858930,-292.4733043,0.00020548,2]
[328941265,1718017858942,-306.0,0.00020548,2]
[328941266,1718017858952,-292.4733043,0.00020548,2]
[328941267,1718017858962,-205.3053491,0.00020548,2]
[328941268,1718017858973,-205.3053491,0.00020548,2]
[328941269,1718017858983,-292.4733043,0.00020548,2]
[328941270,1718017858993,-544.1632922,0.00020548,2]
[328941271,1718017859004,-205.3053491,0.00020548,2]
[328941272,1718017859014,-205.3053491,0.00020548,2]
[328941273,1718017859025,-205.3053491,0.00020548,2]
[328941274,1718017859035,-410.6106982,0.00020548,2]
[328941275,1718017859045,-205.3053491,0.00020548,2]
[328941276,1718017859056,-205.3053491,0.00020548,2]
[328941277,1718017859066,-238.3,0.0002057,5]
[328941278,1718017859078,-1132.56,0.00020821,2]
[328941279,1718017859088,-559.44,0.00020821,2]
[328941280,1718017859098,-500.0,0.00020821,2]
[328941281,1718017859109,-605.11,0.00020821,4]
[328941282,1718017859119,-501.41,0.00020821,2]
[328941283,1718017859129,-500.0,0.00020821,2]
[328941284,1718017859140,-500.0,0.00020821,2]
[328941285,1718017859150,-500.0,0.00020821,2]
[328941286,1718017859167,-500.0,0.00020821,2]
[328941287,1718017859186,-500.0,0.00020821,2]
[328941288,1718017859205,-554.7739449,0.00020821,2]
[328941289,1718017859226,-1535.29,0.00020821,2]
[328941290,1718017859246,-500.0,0.00020821,2]
[328941291,1718017859263,-570.25,0.00020821,2]
[328941292,1718017859282,-640.85,0.00020821,2]
[328941293,1718017859298,-500.0,0.00020821,2]
[328941294,1718017859313,-1349.56,0.00020821,2]
[328941295,1718017859332,-508.24121679,0.00020821,2]
[328941296,1718017859352,-500.0,0.00020821,2]
[328941297,1718017859366,-500.0,0.00020821,2]
[328941298,1718017859385,-594.1,0.00020821,2]
[328941299,1718017859399,-1198.99,0.00020821,2]
[328941300,1718017859415,-500.0,0.00020821,2]
[328941301,1718017859429,-500.0,0.00020821,2]
[328941302,1718017859444,-1205.29,0.00020821,2]
[328941303,1718017859459,-1488.6,0.00020821,2]
[328941304,1718017859474,-735.49,0.00020821,2]
[328941305,1718017859489,-500.0,0.00020821,2]
[328941306,1718017859504,-550.47,0.00020821,2]
[328941307,1718017859518,-810.63,0.00020821,2]
[328941308,1718017859534,-500.0,0.00020821,2]
[328941309,1718017859548,-343.7965023,0.00020821,2]
[328941310,1718017859563,-500.0,0.00020821,2]
[328941311,1718017859578,-1112.03,0.00020821,2]
[328941312,1718017859593,-523.01,0.00020821,2]
[328941313,1718017859608,-1567.95,0.00020821,2]
[328941314,1718017859622,-261.12908118,0.00020821,2]
[328941315,1718017859637,-500.0,0.00020821,2]
[328941316,1718017859652,-500.0,0.00020821,2]
[328941317,1718017859667,-699.03,0.00020821,2]
[328941318,1718017859681,-463.17761274,0.00020821,2]
[328941319,1718017859696,-746.26,0.00020821,2]
[328941320,1718017859711,-625.63,0.00020821,2]
[328941321,1718017859727,-247.73006924,0.00020821,2]
[328941322,1718017859742,-500.0,0.00020821,2]
[328941323,1718017859757,-929.91,0.00020821,2]
[328941324,1718017859771,-500.0,0.00020821,2]
[328941325,1718017859786,-484.40192052,0.00020821,2]
[328941326,1718017859801,-1607.76,0.00020821,2]
[328941327,1718017859816,-500.0,0.00020821,2]
[328941328,1718017859831,-500.0,0.00020821,2]
[328941329,1718017859924,-500.0,0.00020821,2]
[328941330,1718017859936,-1323.18,0.00020821,2]
[328941331,1718017859947,-500.0,0.00020821,2]
[328941332,1718017859958,-500.0,0.00020821,2]
[328941333,1718017859968,-1044.77,0.00020821,2]
[328941334,1718017859978,-2042.85,0.00020821,2]
[328941335,1718017859987,-500.0,0.00020821,2]
[328941336,1718017859998,-500.0,0.00020821,2]
[328941337,1718017860007,-500.0,0.00020821,2]
[328941338,1718017860018,-500.0,0.00020821,2]
[328941339,1718017860029,-500.0,0.00020821,2]
[328941340,1718017860039,-500.0,0.00020821,2]
[328941341,1718017860050,-500.0,0.00020821,2]
[328941342,1718017860060,-894.2,0.00020821,2]
[328941343,1718017860070,-500.0,0.00020821,2]
[328941344,1718017860080,-500.0,0.00020821,2]
[328941345,1718017860090,-633.2,0.00020821,2]